bitfinex-derivatives/quotes_ETHF0:USTF0_20260121
["timestamp","ask_amount","ask_price","bid_price","bid_amount"]
[1769012685375,0.91530183,2962.5,2960.7,0.16902]
[1769012685676,0.00342591,2962.5,2960.7,0.17169721]
[1769012687074,3.45529793,2963.3,2960.8,4.57777402]
[1769012687270,3.45529793,2963.1,2960.9,0.169]
[1769012687579,3.45529793,2963.1,2960.8,4.40876402]
[1769012688078,3.45847484,2963.1,2960.8,4.40876402]
[1769012688283,3.45529793,2962.9,2960.8,0.65]
[1769012688477,3.45529793,2962.7,2960.8,0.65]
[1769012689277,0.00317691,2963.1,2961.0,3.75876402]
[1769012689477,3.45529793,2962.9,2960.9,0.65]
[1769012690478,0.00317691,2963.1,2961.0,0.169]
[1769012690682,0.00317691,2963.1,2961.0,3.92776402]
[1769012691282,3.62419793,2962.9,2960.9,0.65]
[1769012691583,0.00317691,2963.1,2960.7,0.00267721]
[1769012691584,3.45529793,2962.7,2960.7,0.00267721]
[1769012691975,3.62422793,2962.2,2960.7,0.00267721]
[1769012693477,3.45529793,2962.1,2960.7,0.00267721]
[1769012693679,3.62424793,2962.0,2960.7,0.00267721]
[1769012693880,3.62424793,2961.9,2960.7,0.00267721]
[1769012695476,3.95756111,2962.9,2960.7,0.00267721]
[1769012695477,3.45529793,2961.8,2960.7,0.00267721]
[1769012695680,0.16896,2961.7,2960.7,0.00267721]
[1769012697281,0.16896,2961.7,2959.7,3.75876402]
[1769012697472,0.16896,2961.7,2959.8,0.16907]
[1769012697675,3.45529793,2961.8,2959.9,0.16906]
[1769012697978,3.45529793,2962.4,2960.1,0.16905]
[1769012698180,0.16893,2962.2,2960.1,0.16905]
[1769012698483,3.65873654,2962.1,2960.1,0.17304047]
[1769012699388,3.65874654,2961.9,2960.1,0.00399047]
[1769012701592,3.48979654,2961.7,2960.1,0.00399047]
[1769012702681,3.65878654,2961.2,2960.1,0.00399047]
[1769012702881,3.65878654,2961.2,2958.3,3.083]
[1769012702882,0.16901,2960.8,2958.6,0.16913]
[1769012703088,0.16901,2960.8,2958.4,3.436195]
[1769012703284,0.16902,2960.7,2958.7,0.16913]
[1769012703486,0.16902,2960.7,2958.4,3.436195]
[1769012703487,3.65883654,2960.4,2958.4,3.436195]
[1769012703790,3.6631529,2960.4,2958.4,3.60778112]
[1769012704291,3.4941129,2960.4,2958.4,3.60778112]
[1769012704686,3.4941129,2960.4,2958.4,0.00243612]
[1769012704885,3.65885654,2960.0,2958.4,0.00243612]
[1769012705081,3.48979654,2959.8,2958.4,0.00243612]
[1769012705290,3.65887654,2959.7,2958.4,0.00243612]
[1769012705491,3.48979654,2959.3,2958.4,0.00243612]
[1769012705684,3.48979654,2959.3,2957.2,3.436195]
[1769012706094,3.48979654,2959.3,2957.4,0.1692]
[1769012706292,3.48979654,2959.9,2957.4,3.436195]
[1769012706486,3.65889654,2959.4,2957.4,3.436195]
[1769012706690,3.65889654,2959.4,2957.4,3.43965609]
[1769012706890,3.65889654,2959.4,2957.4,0.00346109]
[1769012707093,3.65892654,2958.7,2957.4,0.00346109]
[1769012707591,0.16917,2958.1,2956.2,3.436195]
[1769012707785,0.30122208,2959.8,2955.9,0.16929]
[1769012707786,3.48979654,2958.0,2955.9,0.16929]
[1769012708593,3.49349985,2958.0,2955.9,0.17277879]
[1769012708996,3.49349985,2958.0,2956.0,0.16928]
[1769012709193,3.49349985,2958.0,2956.1,0.16928]
[1769012709393,3.49349985,2958.0,2955.9,0.00348879]
[1769012709594,3.48979654,2957.8,2955.9,0.00348879]
[1769012711196,3.48979654,2957.8,2955.9,0.17277879]
[1769012711994,3.65897654,2957.8,2955.9,0.00348879]
[1769012712394,3.48979654,2957.6,2955.9,0.00348879]
[1769012712594,3.48979654,2957.3,2955.9,0.00348879]
[1769012712902,3.48979654,2957.0,2954.5,3.436195]
[1769012713105,0.00507417,2957.1,2955.1,3.605535]
[1769012713297,0.00507417,2957.1,2955.2,3.605525]
[1769012713499,0.00507417,2957.1,2955.5,3.605505]
[1769012713700,0.00507417,2957.1,2955.5,3.43975319]
[1769012713890,0.00507417,2957.1,2955.9,0.16929]
[1769012714295,0.00507417,2957.1,2955.5,3.43975319]
[1769012714792,0.00370331,2958.0,2956.0,0.16928]
[1769012714998,0.00370331,2958.0,2956.0,3.605475]
[1769012715194,0.00370331,2958.0,2956.0,3.61054917]
[1769012715400,3.49349985,2958.0,2956.0,0.17435417]
[1769012716901,3.41937562,2957.5,2956.0,0.00507417]
[1769012717103,3.58857562,2957.5,2956.0,0.00507417]
[1769012718005,3.41937562,2957.3,2956.0,0.00507417]
[1769012720501,3.41937562,2957.3,2955.5,0.00355819]
[1769012720502,3.58858562,2957.3,2955.5,0.00355819]
[1769012720707,3.42444979,2956.9,2955.5,0.00355819]
[1769012722809,3.59367979,2956.9,2955.5,0.00355819]
[1769012723005,3.41937562,2956.7,2954.3,0.16938]
[1769012723208,3.41937562,2956.4,2954.5,0.16937]
[1769012723604,3.41937562,2956.4,2954.6,0.16937]
[1769012724009,3.41937562,2956.4,2954.6,0.17366951]
[1769012724411,3.41937562,2956.4,2954.7,0.16936]
[1769012724810,3.42444979,2956.9,2954.6,3.46289564]
[1769012725011,3.42444979,2956.9,2955.3,0.16932]
[1769012725211,3.42444979,2956.9,2954.8,3.45859613]
[1769012725411,3.42444979,2956.9,2955.4,0.16932]
[1769012726017,0.00507417,2956.9,2954.8,3.45859613]
[1769012726209,0.00507417,2956.9,2955.7,0.1693]
[1769012726511,0.00507417,2956.9,2956.0,0.16929]
[1769012726716,0.00507417,2956.9,2956.1,0.16928]
[1769012727311,0.00507417,2956.9,2955.4,23.2]
[1769012727312,0.00507417,2956.9,2955.5,0.16931]
[1769012727512,0.00507417,2956.9,2954.6,0.00429951]
[1769012727513,3.42444979,2956.9,2954.9,0.16935]
[1769012728921,3.42444979,2956.9,2954.6,0.00429951]
[1769012729120,3.41937562,2956.5,2954.6,0.00429951]
[1769012729420,3.58863562,2956.5,2954.6,0.00429951]
[1769012730448,3.41937562,2956.2,2954.6,0.00429951]
[1769012730626,3.41937562,2955.9,2954.6,0.00429951]
[1769012730831,3.42248909,2955.9,2954.6,0.00429951]
[1769012735527,0.00311347,2955.9,2954.6,0.00429951]
[1769012735832,0.00311347,2955.9,2954.6,0.17366951]
[1769012736229,3.42248909,2955.9,2954.6,0.00429951]
[1769012736530,3.41937562,2955.7,2954.6,0.00429951]
[1769012737326,3.41937562,2955.3,2953.2,0.16944]
[1769012737527,1.18104897,2955.9,2953.2,0.16944]
[1769012737528,3.41937562,2955.1,2953.2,0.16944]
[1769012737728,0.90322289,2955.0,2952.6,26.82807613]
[1769012737932,3.41937562,2954.8,2952.6,26.82807613]
[1769012738231,3.41937562,2954.8,2952.6,26.83233081]
[1769012738431,3.42444979,2954.1,2952.6,0.00425468]
[1769012740636,0.00507417,2954.1,2952.6,0.00425468]
[1769012741438,0.00507417,2954.1,2952.8,0.16947]
[1769012742727,0.00507417,2954.1,2952.9,0.16946]
[1769012743942,0.00507417,2954.1,2953.2,0.16945]
[1769012744533,0.00507417,2954.1,2952.6,0.00425468]
[1769012745635,0.00507417,2954.1,2952.6,0.17373468]
[1769012746237,3.54008284,2954.1,2952.6,0.00425468]
[1769012746941,0.00507417,2954.1,2952.6,3.65867455]
[1769012747238,0.00507417,2954.1,2952.7,0.16947]
[1769012747444,0.00507417,2954.1,2952.6,0.00425468]
[1769012747640,0.00507417,2954.1,2953.0,0.16946]
[1769012748147,0.00507417,2954.1,2953.1,0.16945]
[1769012748438,0.00507417,2954.1,2952.7,3.65441987]
[1769012748631,3.53500867,2955.1,2952.7,3.65441987]
[1769012748632,3.53500867,2955.1,2953.5,0.16943]
[1769012748835,3.53500867,2955.1,2953.3,0.00507417]
[1769012749038,3.70435867,2954.9,2953.3,0.00507417]
[1769012749244,3.53500867,2954.7,2953.3,0.00507417]
[1769012752245,3.70436867,2954.7,2953.3,0.00507417]
[1769012752650,3.53500867,2954.7,2953.3,0.00507417]
[1769012753341,3.53500867,2954.7,2953.4,0.16943]
[1769012753539,3.53500867,2955.4,2953.6,0.16942]
[1769012753740,3.53500867,2955.4,2953.7,0.16942]
[1769012753947,3.53500867,2955.2,2953.3,0.00507417]
[1769012754147,3.53500867,2955.2,2953.4,0.16943]
[1769012754340,3.53500867,2955.7,2953.3,3.65949404]
[1769012754541,0.9063994,2955.6,2953.9,0.1694]
[1769012754741,3.53500867,2955.7,2953.5,3.65441987]
[1769012754954,3.53500867,2955.7,2953.8,0.16941]
[1769012755249,3.53500867,2955.5,2953.8,0.16941]
[1769012757244,0.90885287,2955.4,2953.8,0.16941]
[1769012757449,3.53500867,2955.5,2953.8,0.16941]
[1769012757660,0.90885831,2955.4,2953.8,0.16941]
[1769012757848,3.53500867,2955.5,2953.8,0.16941]
[1769012758048,0.90885966,2955.4,2954.0,0.1694]
[1769012758255,3.53500867,2955.5,2954.0,0.1694]
[1769012758554,3.53500867,2955.5,2954.1,0.16939]
[1769012759554,0.00311347,2955.9,2954.1,3.41121061]
[1769012759757,0.90988935,2955.8,2954.5,0.16937]
[1769012759959,0.00311347,2955.9,2954.5,0.16937]
[1769012760264,0.90988123,2955.8,2954.1,3.41121061]
[1769012760561,0.00311347,2955.9,2953.4,24.64629964]
[1769012760562,3.70591049,2955.7,2953.7,3.41121061]
[1769012760865,0.00311347,2955.9,2954.9,0.16935]
[1769012761058,0.00311347,2955.9,2955.1,0.16934]
[1769012761458,3.70902396,2955.9,2954.0,0.1694]
[1769012761653,0.90950958,2955.8,2954.0,0.1694]
[1769012761860,5.02988235,2955.7,2954.0,0.1694]
[1769012762170,3.70591049,2955.5,2953.4,0.16943]
[1769012762467,3.70591049,2955.3,2953.4,0.0024665]
[1769012762661,0.90944825,2955.2,2953.4,0.0024665]
[1769012763167,4.61535874,2955.2,2953.4,0.0024665]
[1769012763475,3.70591049,2955.2,2953.4,0.0024665]
[1769012764370,3.70591049,2955.0,2953.4,0.0024665]
[1769012765066,3.70591049,2954.8,2953.4,0.0024665]
[1769012765262,3.70591049,2954.8,2952.2,3.41121061]
[1769012765263,3.70591049,2954.4,2952.2,3.58071061]
[1769012765559,3.70591049,2954.4,2952.4,0.16949]
[1769012766268,3.70591049,2954.4,2952.4,0.17228018]
[1769012766666,3.70591049,2954.4,2952.4,0.00279018]
[1769012766862,3.70591049,2954.2,2952.4,0.00279018]
[1769012768770,3.70591049,2954.2,2952.5,0.16949]
[1769012768967,3.70591049,2954.8,2952.5,3.58070061]
[1769012769265,3.70591049,2954.6,2952.5,3.58070061]
[1769012769470,0.91323497,2954.5,2952.5,3.58070061]
[1769012769670,4.61914546,2954.5,2952.5,3.58070061]
[1769012769973,3.70591049,2954.5,2952.5,3.58070061]
[1769012770467,3.70591049,2954.5,2952.6,1.44629964]
[1769012770670,3.70591049,2955.0,2953.2,0.16945]
[1769012770871,3.70591049,2955.5,2953.5,0.16943]
[1769012771077,1.3285844,2955.4,2953.5,3.41121061]
[1769012771370,3.70591049,2955.5,2953.8,0.16941]
[1769012771776,0.00311347,2955.9,2953.8,3.41121061]
[1769012771972,0.00311347,2955.9,2954.1,4.85751025]
[1769012772167,0.00311347,2955.9,2954.6,0.16936]
[1769012772368,0.00311347,2955.9,2954.6,0.17265866]
[1769012772971,0.00311347,2955.9,2954.6,0.00329866]
[1769012773278,3.70902396,2955.9,2954.6,0.00329866]
[1769012775162,0.00311347,2955.9,2954.6,0.00329866]
[1769012775367,0.00311347,2955.9,2954.6,0.17265866]
[1769012777470,0.16924,2956.9,2954.7,3.84173262]
[1769012777667,3.68485774,2957.0,2955.2,0.16933]
[1769012777875,3.68485774,2957.5,2955.6,0.16931]
[1769012778573,3.68886999,2957.5,2955.6,0.16931]
[1769012778877,3.68886999,2957.5,2955.7,0.1693]
[1769012779076,3.68886999,2957.5,2955.2,3.67237262]
[1769012779077,3.68886999,2957.5,2955.2,3.84170262]
[1769012779373,3.85806999,2957.5,2955.3,0.16932]
[1769012779575,3.85806999,2957.5,2955.4,0.16932]
[1769012779781,3.68886999,2957.5,2955.5,0.16931]
[1769012780579,3.68886999,2957.5,2955.6,0.16931]
[1769012780778,3.68886999,2957.5,2955.8,0.1693]
[1769012781781,3.68485774,2958.6,2956.5,0.16925]
[1769012782586,3.68485774,2958.6,2956.7,3.67237262]
[1769012782785,3.68485774,2959.4,2957.0,0.16923]
[1769012783083,3.68485774,2959.2,2957.0,0.16923]
[1769012783281,3.68485774,2959.2,2956.4,3.016]
[1769012783282,3.68485774,2959.2,2957.3,0.16921]
[1769012784279,3.68485774,2959.2,2956.0,3.39]
[1769012784280,3.68485774,2959.2,2956.6,0.16925]
[1769012784470,3.68485774,2958.9,2956.6,0.16925]
[1769012784672,3.68485774,2958.9,2956.6,0.17314796]
[1769012784673,3.68807771,2958.9,2956.6,0.17314796]
[1769012784873,3.68807771,2958.9,2956.6,23.37314796]
[1769012785269,3.68807771,2958.9,2956.6,0.17314796]
[1769012785978,3.85719771,2958.9,2956.6,0.17314796]
[1769012786487,3.85719771,2958.9,2956.6,3.84552058]
[1769012786680,3.85719771,2958.9,2956.6,5.29182022]
[1769012786981,3.68807771,2958.9,2957.0,0.16922]
[1769012787783,0.00321997,2958.9,2957.3,0.16921]
[1769012788084,0.00321997,2958.9,2957.4,0.16921]
[1769012788282,0.00321997,2958.9,2957.6,0.16919]
[1769012788683,0.00321997,2958.9,2957.2,3.67237262]
[1769012788878,0.00321997,2958.9,2957.1,1.44629964]
[1769012788879,3.68485774,2959.9,2957.7,3.67237262]
[1769012789188,3.68485774,2960.6,2958.3,0.16915]
[1769012789481,3.68485774,2960.6,2958.4,0.16915]
[1769012789986,3.68485774,2960.3,2957.9,0.16917]
[1769012790280,3.68485774,2960.3,2958.0,0.16917]
[1769012790583,3.68485774,2960.3,2958.1,23.2]
[1769012790787,3.85389774,2960.3,2958.0,0.16917]
[1769012792183,3.85389774,2960.3,2958.1,0.16916]
[1769012792387,3.68485774,2960.3,2958.2,0.16916]
[1769012792583,3.68485774,2960.3,2958.5,0.16914]
[1769012792880,3.68485774,2960.3,2958.3,3.67237262]
[1769012792881,3.68485774,2960.3,2958.7,0.16913]
[1769012793085,3.68485774,2960.3,2958.8,0.16913]
[1769012793294,3.68485774,2960.3,2958.7,0.004118]
[1769012794983,0.00356015,2960.6,2958.8,0.16913]
[1769012795190,0.00356015,2960.6,2958.8,3.84150262]
[1769012795587,3.68841789,2960.6,2958.8,0.16913]
[1769012796193,3.68841789,2960.6,2958.7,0.004118]
[1769012797487,3.68841789,2960.6,2958.8,0.16913]
[1769012797986,3.68841789,2960.6,2958.9,0.16912]
[1769012798187,3.68841789,2960.6,2959.0,0.16911]
[1769012798395,0.00356015,2960.6,2959.1,0.16911]
[1769012799294,0.00356015,2960.6,2958.8,3.67237262]
[1769012799493,3.68841789,2960.6,2958.7,0.004118]
[1769012799895,3.68841789,2960.6,2958.7,0.173248]
[1769012800491,3.68841789,2960.6,2958.7,0.004118]
[1769012800692,3.85743789,2960.6,2958.7,0.004118]
[1769012801791,3.68841789,2960.6,2958.8,0.16912]
[1769012802091,3.68841789,2960.6,2959.0,0.16911]
[1769012802092,0.00356015,2960.6,2959.0,0.16911]
[1769012804096,0.00356015,2960.6,2959.3,0.16909]
[1769012804286,0.00356015,2960.6,2959.4,0.16909]
[1769012804693,3.68841789,2960.6,2958.8,0.16912]
[1769012805390,3.68841789,2960.6,2958.9,0.16912]
[1769012806196,3.68841789,2960.6,2959.0,0.16911]
[1769012806396,0.00356015,2960.6,2959.3,0.16909]
[1769012806797,0.00356015,2960.6,2959.5,0.16909]
[1769012806999,0.00356015,2960.6,2959.2,3.43910532]
[1769012807000,3.41534911,2961.6,2959.8,0.16907]
[1769012807600,3.41534911,2962.2,2960.0,0.16905]
[1769012807902,3.41534911,2962.0,2959.9,3.43910532]
[1769012808091,3.41930697,2962.0,2960.1,0.16905]
[1769012809406,3.41534911,2961.8,2959.5,0.16908]
[1769012810000,3.41534911,2961.6,2959.6,3.43910532]
[1769012810301,3.41534911,2961.6,2959.7,3.43910532]
[1769012810502,0.00395786,2962.0,2959.7,3.43910532]
[1769012810899,0.00395786,2962.0,2960.4,3.60813532]
[1769012811495,0.00395786,2962.0,2959.8,0.16907]
[1769012811496,3.41930697,2962.0,2959.8,0.16907]
[1769012811800,3.58824697,2962.0,2959.8,0.16907]
[1769012812099,3.58430911,2961.7,2959.8,3.43910532]
[1769012812493,3.41534911,2961.7,2959.3,26.80820532]
[1769012812693,3.58432911,2961.3,2958.7,3.44322332]
[1769012812897,3.41534911,2961.1,2958.9,0.16912]
[1769012813100,3.58434911,2961.0,2959.0,3.43910532]
[1769012814105,3.41534911,2960.8,2958.9,0.16912]
[1769012814300,3.58435911,2960.8,2958.7,0.004118]
[1769012814807,3.41534911,2960.6,2958.7,0.004118]
[1769012815700,3.41534911,2960.6,2958.7,0.173248]
[1769012816107,0.169,2961.0,2958.9,3.60822532]
[1769012816312,1.31987721,2960.9,2958.9,3.60822532]
[1769012816511,0.90667701,2960.8,2958.9,3.60822532]
[1769012816710,3.41534911,2960.6,2958.9,0.16912]
[1769012816897,3.41534911,2960.6,2958.7,0.004118]
[1769012817798,3.41534911,2960.4,2958.7,0.004118]
[1769012821315,3.43270512,2960.9,2958.9,3.70174715]
[1769012821614,1.32266035,2960.8,2959.0,3.70173715]
[1769012821814,1.32265637,2960.7,2959.0,3.70173715]
[1769012822107,3.43270512,2961.4,2959.0,3.53262715]
[1769012822306,1.32312215,2961.3,2959.8,0.16907]
[1769012822513,3.43270512,2961.9,2960.0,0.16906]
[1769012822711,3.43270512,2961.9,2959.9,3.53262715]
[1769012822712,0.00395786,2962.0,2960.5,3.53262715]
[1769012823110,0.00395786,2962.0,2960.6,0.16902]
[1769012823416,0.00395786,2962.0,2960.2,2.983]
[1769012823618,0.00395786,2962.0,2960.2,6.68467715]
[1769012823819,0.00395786,2962.0,2960.6,3.70162715]
[1769012824120,0.00395786,2962.0,2960.6,26.90162715]
[1769012824617,0.00395786,2962.0,2960.7,3.53262715]
[1769012825417,0.00395786,2962.0,2959.4,28.49021533]
[1769012825418,3.43666298,2962.0,2960.0,0.16904]
[1769012825614,4.75461825,2961.9,2960.0,0.16904]
[1769012825814,0.90814082,2961.8,2960.0,0.16904]
[1769012826017,3.43270512,2961.8,2960.0,23.36904]
[1769012826419,3.43270512,2961.8,2960.0,0.16904]
[1769012827117,3.43270512,2961.8,2960.0,3.70166715]
[1769012827523,0.00395786,2962.0,2960.3,3.53262715]
[1769012827917,0.00395786,2962.0,2960.5,3.70163715]
[1769012828315,0.00395786,2962.0,2960.6,3.70162715]
[1769012828622,0.00395786,2962.0,2960.6,0.169]
[1769012829122,0.00395786,2962.0,2960.7,0.169]
[1769012829915,3.43270512,2963.1,2960.8,2.992]
[1769012830124,1.32218774,2963.0,2961.1,0.16898]
[1769012830312,3.43270512,2963.1,2961.1,0.16898]
[1769012830618,0.90801381,2963.0,2960.5,0.16901]
[1769012830819,3.43270512,2962.8,2960.6,3.161]
[1769012831121,3.43597215,2962.8,2960.6,3.1653066]
[1769012831623,0.00326703,2962.8,2961.4,3.53262715]
[1769012832014,0.00326703,2962.8,2961.5,2.989]
[1769012832209,0.00326703,2962.8,2961.3,23.36896]
[1769012832615,0.00326703,2962.8,2961.3,0.16896]
[1769012834327,3.43597215,2962.8,2961.2,23.2]
[1769012834822,3.43597215,2962.8,2961.0,2.992]
[1769012835225,3.43597215,2962.8,2960.9,23.36899]
[1769012835426,3.43597215,2962.8,2960.6,0.0043066]
[1769012835628,3.55121914,2962.6,2960.6,0.0043066]
[1769012836023,3.55121914,2962.4,2960.6,0.0043066]
[1769012836728,3.55121914,2962.4,2960.7,0.169]
[1769012837321,3.55121914,2962.4,2960.6,2.9973066]
[1769012838918,3.55121914,2962.4,2960.6,6.74708844]
[1769012840721,0.00326703,2962.8,2960.9,3.58078184]
[1769012840921,0.00326703,2962.8,2961.4,0.16896]
[1769012841626,0.00326703,2962.8,2961.4,3.74974184]
[1769012841921,0.00326703,2962.8,2961.5,0.16895]
[1769012842717,0.00326703,2962.8,2961.4,3.58078184]
[1769012843022,3.55448617,2962.8,2960.9,3.74977184]
[1769012846934,0.00326703,2962.8,2961.2,3.74975184]
[1769012847630,0.00326703,2962.8,2961.6,0.16895]
[1769012847834,0.00326703,2962.8,2960.6,6.3893066]
[1769012847835,0.00326703,2962.8,2962.0,0.16892]
[1769012848133,3.72001914,2964.2,2961.9,3.58078184]
[1769012848326,1.32419441,2964.1,2961.9,3.58078184]
[1769012848527,3.55121914,2964.1,2961.9,3.58078184]
[1769012848926,3.55497356,2964.1,2961.9,3.58078184]
[1769012849439,3.55497356,2964.1,2961.8,2.994]
[1769012849440,3.55497356,2964.1,2962.3,3.74969184]
[1769012850128,3.55121914,2963.5,2961.6,0.16894]
[1769012850335,3.72005914,2963.5,2961.2,3.58078184]
[1769012850738,3.72005914,2963.5,2961.5,3.74973184]
[1769012850935,3.55121914,2963.5,2961.6,3.74973184]
[1769012851230,3.55497356,2964.1,2961.8,3.74972184]
[1769012851433,1.32588257,2964.0,2962.0,0.16892]
[1769012851632,3.55497356,2964.1,2962.1,0.16892]
[1769012851833,3.55497356,2964.1,2962.3,0.16891]
[1769012852130,0.00375442,2964.1,2962.5,3.58078184]
[1769012852331,0.00375442,2964.1,2962.8,0.16888]
[1769012852538,0.00375442,2964.1,2962.9,0.16887]
[1769012852737,0.00375442,2964.1,2962.9,3.74965184]
[1769012853632,3.55497356,2964.1,2962.8,0.00312408]
[1769012854030,0.91095162,2964.0,2962.8,0.00312408]
[1769012854232,3.55121914,2964.0,2962.8,0.00312408]
[1769012856141,0.00375442,2964.1,2962.8,0.00312408]
[1769012860331,0.00375442,2964.1,2962.8,0.17200408]
[1769012860726,0.00375442,2964.1,2962.8,3.75278592]
[1769012860931,3.55121914,2965.1,2962.8,3.75278592]
[1769012860932,3.55121914,2965.1,2963.4,0.16884]
[1769012861436,3.55121914,2965.7,2963.5,3.74962184]
[1769012861732,3.55121914,2965.3,2963.2,23.2]
[1769012861934,3.55121914,2965.1,2963.1,2.991]
[1769012862135,3.55442271,2965.1,2962.9,0.16887]
[1769012862334,3.55121914,2964.9,2962.9,25.87187]
[1769012862838,3.55121914,2964.7,2962.8,0.00312408]
[1769012863431,3.55121914,2964.7,2962.8,3.58390592]
[1769012863830,3.55121914,2964.7,2962.8,6.56478592]
[1769012864136,3.55442271,2965.1,2963.0,3.74965184]
[1769012865840,3.55442271,2965.1,2963.0,0.16887]
[1769012866036,3.75534197,2964.9,2962.8,0.00312408]
[1769012866243,3.92411197,2964.7,2962.8,0.00312408]
[1769012866437,3.75534197,2964.5,2962.8,0.00312408]
[1769012867237,0.16879,2964.4,2962.8,0.00312408]
[1769012867437,3.92413197,2964.4,2962.8,0.00312408]
[1769012869141,3.75534197,2964.1,2961.9,3.48243693]
[1769012869535,3.75534197,2964.1,2962.0,23.2]
[1769012869735,3.75534197,2964.1,2962.1,3.48243693]
[1769012869936,3.75534197,2964.1,2962.2,3.65134693]
[1769012870137,3.75534197,2964.1,2962.2,3.65550216]
[1769012870638,3.75534197,2964.6,2962.5,0.16889]
[1769012870840,3.75534197,2964.6,2962.5,3.65132693]
[1769012871038,3.75534197,2964.4,2962.2,0.00415523]
[1769012871334,3.75534197,2964.2,2962.2,3.00115523]
[1769012871740,3.75534197,2964.2,2962.3,3.65134693]
[1769012872345,3.75534197,2964.2,2962.4,0.1689]
[1769012872542,3.75534197,2964.2,2962.2,3.00115523]
[1769012872543,3.75534197,2964.7,2962.7,0.16889]
[1769012872738,3.75534197,2964.5,2962.7,0.16889]
[1769012872941,3.75534197,2964.3,2962.4,3.0]
[1769012873442,3.75534197,2964.3,2962.4,3.1689]
[1769012873949,3.75534197,2964.3,2962.4,0.1689]
[1769012875846,3.75534197,2964.9,2962.5,3.48243693]
[1769012876042,3.75534197,2964.9,2963.2,1.4366191]
[1769012876043,1.32605324,2964.8,2963.2,1.4366191]
[1769012876351,3.75534197,2964.9,2963.2,1.4366191]
[1769012876542,0.4152663,2964.8,2963.2,1.4366191]
[1769012876844,3.75534197,2964.9,2963.3,0.16885]
[1769012877149,3.75534197,2964.9,2963.4,0.16885]
[1769012877334,0.00320357,2965.1,2963.4,0.16885]
[1769012877540,0.00320357,2965.1,2963.6,0.16883]
[1769012879840,0.00320357,2965.1,2963.6,3.76358067]
[1769012880644,0.00320357,2965.1,2963.7,0.16883]
[1769012880944,0.00320357,2965.1,2963.6,3.59475067]
[1769012881148,0.00320357,2965.1,2963.5,2.999]
[1769012881149,0.00320357,2965.1,2963.9,0.16882]
[1769012881546,3.98165727,2965.9,2963.8,3.59475067]
[1769012881748,3.70945055,2966.5,2964.7,1.6053891]
[1769012881951,0.16866,2966.7,2964.7,1.6053891]
[1769012881952,3.70945055,2967.0,2964.8,3.59475067]
[1769012882247,3.70945055,2967.0,2965.0,0.16875]
[1769012882545,3.70945055,2966.6,2965.0,0.00292219]
[1769012882745,3.70945055,2966.6,2964.2,26.22153962]
[1769012882746,3.70945055,2966.2,2963.9,0.16882]
[1769012883254,3.70945055,2965.9,2963.9,0.16882]
[1769012883449,0.16875,2965.2,2963.1,1.4366191]
[1769012883649,3.70945055,2965.1,2963.0,2.999]
[1769012883848,3.70945055,2965.1,2963.0,3.00202577]
[1769012884251,3.70945055,2965.1,2963.1,5.03136977]
[1769012884647,3.70945055,2965.1,2963.1,8.02936977]
[1769012884846,3.70945055,2965.1,2963.1,8.19822977]
[1769012885046,3.70945055,2965.1,2963.4,0.16884]
[1769012885347,0.00506526,2965.3,2963.7,0.16883]
[1769012885547,0.00506526,2965.3,2963.8,0.16882]
[1769012885753,0.00506526,2965.3,2963.9,0.16882]
[1769012886554,0.00506526,2965.3,2963.6,5.03136977]
[1769012887847,0.00506526,2965.3,2963.7,3.59475067]
[1769012889759,14.07745055,2966.2,2964.2,3.76355067]
[1769012890053,14.07745055,2966.2,2963.3,3.02153962]
[1769012890054,3.70945055,2965.5,2963.0,3.02456539]
[1769012890352,3.87820055,2965.2,2963.0,0.00302577]
[1769012890851,3.70945055,2965.2,2963.2,3.59475067]
[1769012891653,3.70945055,2965.2,2963.3,3.59475067]
[1769012891853,0.16872,2965.6,2963.5,3.76359067]
[1769012892155,3.87817055,2965.6,2963.9,0.00506526]
[1769012892357,3.70945055,2965.6,2963.9,0.00506526]
[1769012893858,3.70945055,2965.4,2963.9,0.00506526]
[1769012894052,3.70945055,2965.3,2963.9,0.00506526]
[1769012894651,3.70945055,2966.1,2963.9,3.59981593]
[1769012894857,1.33531023,2966.0,2963.9,3.76863593]
[1769012895057,3.70945055,2966.1,2964.1,3.76355067]
[1769012895258,3.70945055,2966.1,2963.9,0.00506526]
[1769012895259,3.70945055,2966.1,2964.2,3.76355067]
[1769012896158,3.70945055,2966.1,2964.3,2.997]
[1769012896749,3.70945055,2966.1,2964.2,3.76355067]
[1769012896955,3.70945055,2966.1,2964.2,6.76055067]
[1769012897150,3.70945055,2966.1,2964.2,0.1688]
[1769012899664,3.70945055,2966.1,2964.4,0.16879]
[1769012900560,3.70945055,2966.1,2963.9,2.99806526]
[1769012900966,3.87814055,2966.1,2963.9,2.99806526]
[1769012901467,3.87814055,2966.1,2963.9,3.16688526]
[1769012901859,3.56137069,2965.9,2963.9,3.16688526]
[1769012902061,3.56137069,2965.7,2963.9,0.17388526]
[1769012902564,3.56137069,2965.7,2964.1,0.1688]
[1769012903265,3.56137069,2965.7,2964.2,0.1688]
[1769012903460,0.16867,2966.5,2964.1,3.57225254]
[1769012903461,3.56137069,2966.2,2964.1,3.57225254]
[1769012903657,3.56137069,2966.2,2964.6,0.16878]
[1769012904565,3.56137069,2966.7,2964.6,3.57225254]
[1769012904763,3.56137069,2966.7,2965.2,0.16874]
[1769012905066,3.56137069,2966.7,2965.2,0.17214275]
[1769012905559,3.56137069,2966.7,2965.3,0.16874]
[1769012905760,0.00394524,2967.0,2965.3,0.16874]
[1769012906471,0.00394524,2967.0,2965.3,3.74099254]
[1769012906771,0.00394524,2967.0,2965.5,0.16872]
[1769012907065,3.56531593,2967.0,2965.2,0.00340275]
[1769012907271,3.56137069,2966.8,2965.2,0.00340275]
[1769012911368,3.56137069,2966.6,2965.2,0.00340275]
[1769012911574,3.56137069,2966.4,2965.2,0.00340275]
[1769012913270,3.56137069,2966.2,2964.3,3.57225254]
[1769012913468,3.56137069,2966.2,2964.1,0.16881]
[1769012914258,3.56137069,2966.2,2964.1,0.1731037]
[1769012914564,3.56137069,2966.0,2964.1,0.1731037]
[1769012914764,3.56137069,2965.8,2964.1,0.0042937]
[1769012915266,3.56137069,2966.4,2964.1,3.57654624]
[1769012915468,3.56137069,2966.2,2964.4,0.16877]
[1769012915672,3.56137069,2966.2,2964.5,0.16877]
[1769012916368,3.56137069,2966.2,2964.6,0.16876]
[1769012917971,3.56137069,2966.2,2964.7,0.16875]
[1769012918168,3.56137069,2966.7,2964.8,0.16875]
[1769012919378,3.56137069,2966.5,2964.8,0.16875]
[1769012920776,3.56137069,2966.5,2964.3,3.19030962]
[1769012920962,0.16865,2966.6,2964.3,0.16877]
[1769012920963,3.56137069,2966.3,2964.3,0.16877]
[1769012921474,3.56137069,2966.3,2964.5,0.16877]